[Event "*** Titled Tuesday Blitz"]
[Site "Chess.com"]
[Date "2018.06.05"]
[Round "1"]
[White "BillieKimbah"]
[Black "MPGM"]
[Result "1-0"]
[WhiteElo "2741"]
[BlackElo "2387"]
[TimeControl "180+2"]
[EndTime "13:09:03 PDT"]
[Termination "BillieKimbah won by resignation"]

1. Nf3 {[%clk 0:03:01.9]} 1... d5 {[%clk 0:02:59.9]} 2. g3 {[%clk 0:03:00.7]}
2... g6 {[%clk 0:02:57.8]} 3. Bg2 {[%clk 0:03:01]} 3... Bg7 {[%clk 0:02:58.2]}
4. d4 {[%clk 0:03:02.4]} 4... Nf6 {[%clk 0:02:57.4]} 5. O-O {[%clk 0:03:03.4]}
5... O-O {[%clk 0:02:58.6]} 6. c4 {[%clk 0:03:04.4]} 6... c6 {[%clk 0:02:59]} 7.
b3 {[%clk 0:03:02.5]} 7... a5 {[%clk 0:02:54.4]} 8. Nc3 {[%clk 0:03:02.4]} 8...
Bf5 {[%clk 0:02:47]} 9. Bb2 {[%clk 0:03:01.3]} 9... Nbd7 {[%clk 0:02:30.5]} 10.
cxd5 {[%clk 0:03:01.1]} 10... cxd5 {[%clk 0:02:29.2]} 11. Rc1 {[%clk 0:03:00]}
11... Nb6 {[%clk 0:02:11]} 12. Ne5 {[%clk 0:02:58.8]} 12... Ne4 {[%clk
0:02:02.4]} 13. Nb5 {[%clk 0:02:48.4]} 13... a4 {[%clk 0:01:43.2]} 14. e3 {[%clk
0:02:42.1]} 14... Nd6 {[%clk 0:01:32.5]} 15. Nc7 {[%clk 0:02:26.7]} 15... Rc8
{[%clk 0:01:28.8]} 16. Nxd5 {[%clk 0:02:26.9]} 16... Rxc1 {[%clk 0:01:27.1]} 17.
Qxc1 {[%clk 0:02:26.4]} 17... Nxd5 {[%clk 0:01:26.6]} 18. Bxd5 {[%clk
0:02:28.3]} 18... axb3 {[%clk 0:01:13.3]} 19. axb3 {[%clk 0:02:30.2]} 19... Be4
{[%clk 0:00:57]} 20. Bxe4 {[%clk 0:02:15.9]} 20... Nxe4 {[%clk 0:00:58.9]} 21.
Nd3 {[%clk 0:02:05.5]} 21... Qd5 {[%clk 0:00:57.9]} 22. Qc4 {[%clk 0:02:05.8]}
22... e6 {[%clk 0:00:38.3]} 23. Qxd5 {[%clk 0:02:04.3]} 23... exd5 {[%clk
0:00:40.2]} 24. Rc1 {[%clk 0:02:01.1]} 24... Nd2 {[%clk 0:00:36.9]} 25. Rc5
{[%clk 0:01:56.6]} 25... Nxb3 {[%clk 0:00:33.9]} 26. Rb5 {[%clk 0:01:55.3]}
26... Nd2 {[%clk 0:00:33.9]} 27. Rxb7 {[%clk 0:01:56.3]} 27... Ra8 {[%clk
0:00:27.5]} 28. Rb5 {[%clk 0:01:54.4]} 28... h5 {[%clk 0:00:17.9]} 29. Rxd5
{[%clk 0:01:54.8]} 29... h4 {[%clk 0:00:16.4]} 30. Kg2 {[%clk 0:01:54.4]} 30...
Rb8 {[%clk 0:00:15.1]} 31. Rc5 {[%clk 0:01:45.7]} 31... hxg3 {[%clk 0:00:15.5]}
32. hxg3 {[%clk 0:01:46.3]} 32... Ne4 {[%clk 0:00:16.6]} 33. Rc2 {[%clk
0:01:45.6]} 33... Nd6 {[%clk 0:00:16.7]} 34. Ba3 {[%clk 0:01:44.6]} 34... Rb3
{[%clk 0:00:16.4]} 35. Bxd6 {[%clk 0:01:44.2]} 35... Rxd3 {[%clk 0:00:17.9]} 36.
Rc8+ {[%clk 0:01:42.7]} 36... Kh7 {[%clk 0:00:18.9]} 37. Rc7 {[%clk 0:01:44]}
37... Kg8 {[%clk 0:00:19.9]} 38. Kf3 {[%clk 0:01:41.2]} 38... Rb3 {[%clk
0:00:20.7]} 39. Be5 {[%clk 0:01:35.3]} 39... Bxe5 {[%clk 0:00:21.1]} 40. dxe5
{[%clk 0:01:37.2]} 40... Rb4 {[%clk 0:00:22.7]} 41. Rd7 {[%clk 0:01:37.3]} 41...
Ra4 {[%clk 0:00:23.1]} 42. Rd4 {[%clk 0:01:37.8]} 42... Ra5 {[%clk 0:00:24.7]}
43. Kf4 {[%clk 0:01:37.9]} 43... Kg7 {[%clk 0:00:26.3]} 44. f3 {[%clk
0:01:36.3]} 44... Ra6 {[%clk 0:00:27.6]} 45. e4 {[%clk 0:01:36.3]} 45... Rb6
{[%clk 0:00:28.4]} 46. g4 {[%clk 0:01:34.4]} 46... Re6 {[%clk 0:00:28.8]} 47.
Rd5 {[%clk 0:01:34.4]} 47... Ra6 {[%clk 0:00:29.8]} 48. Kg5 {[%clk 0:01:33.9]}
48... Rb6 {[%clk 0:00:29.1]} 49. f4 {[%clk 0:01:34.6]} 49... Rb7 {[%clk
0:00:28.8]} 50. f5 {[%clk 0:01:34.9]} 50... Ra7 {[%clk 0:00:30.1]} 51. fxg6
{[%clk 0:01:08.2]} 51... fxg6 {[%clk 0:00:30.2]} 52. Rd6 {[%clk 0:01:09.2]}
52... Ra5 {[%clk 0:00:10]} 53. Rd7+ {[%clk 0:01:07.3]} 53... Kf8 {[%clk
0:00:09.9]} 54. Kf6 {[%clk 0:01:08]} 54... Ke8 {[%clk 0:00:09.7]} 55. Rh7 {[%clk
0:01:08.8]} 1-0

[Event "*** Titled Tuesday Blitz"]
[Site "Chess.com"]
[Date "2018.06.05"]
[Round "1"]
[White "PawnEatingZombie"]
[Black "tango_argentino"]
[Result "0-1"]
[WhiteElo "2037"]
[BlackElo "2447"]
[TimeControl "180+2"]
[EndTime "13:09:03 PDT"]
[Termination "tango_argentino won by checkmate"]

1. d4 {[%clk 0:03:01.8]} 1... Nf6 {[%clk 0:02:58.5]} 2. c4 {[%clk 0:03:02.5]}
2... g6 {[%clk 0:02:59.1]} 3. Nc3 {[%clk 0:03:03.8]} 3... Bg7 {[%clk 0:02:59.2]}
4. e4 {[%clk 0:03:04.6]} 4... d6 {[%clk 0:02:59.6]} 5. Nf3 {[%clk 0:03:05.9]}
5... O-O {[%clk 0:03:00]} 6. Be2 {[%clk 0:03:07.3]} 6... Na6 {[%clk 0:03:00.4]}
7. O-O {[%clk 0:03:07.8]} 7... e5 {[%clk 0:03:00.5]} 8. Be3 {[%clk 0:03:08.8]}
8... Qe7 {[%clk 0:03:01]} 9. d5 {[%clk 0:02:55.6]} 9... Ng4 {[%clk 0:03:01.1]}
10. Bg5 {[%clk 0:02:54.6]} 10... f6 {[%clk 0:03:01.4]} 11. Bd2 {[%clk
0:02:47.3]} 11... f5 {[%clk 0:03:01.5]} 12. Bg5 {[%clk 0:02:23.6]} 12... Nf6
{[%clk 0:03:00.2]} 13. Nd2 {[%clk 0:02:11.7]} 13... h6 {[%clk 0:02:57]} 14. Bxf6
{[%clk 0:02:12.9]} 14... Bxf6 {[%clk 0:02:56.6]} 15. a3 {[%clk 0:02:12.4]} 15...
Nc5 {[%clk 0:02:53.7]} 16. b4 {[%clk 0:02:07.7]} 16... Nxe4 {[%clk 0:02:54.1]}
17. Ndxe4 {[%clk 0:02:08.8]} 17... fxe4 {[%clk 0:02:54.4]} 18. Nxe4 {[%clk
0:02:10.4]} 18... Bg7 {[%clk 0:02:54.2]} 19. Bd3 {[%clk 0:02:11.1]} 19... Rf4
{[%clk 0:02:52.1]} 20. g3 {[%clk 0:02:10.8]} 20... Rf7 {[%clk 0:02:50.6]} 21.
Qc2 {[%clk 0:02:09.2]} 21... Bh3 {[%clk 0:02:49.8]} 22. Rfe1 {[%clk 0:02:10]}
22... Raf8 {[%clk 0:02:49.5]} 23. Ra2 {[%clk 0:02:04.5]} 23... Bg4 {[%clk
0:02:42.3]} 24. c5 {[%clk 0:02:01]} 24... Bf3 {[%clk 0:02:41.8]} 25. Qc4 {[%clk
0:01:58.8]} 25... h5 {[%clk 0:02:32.3]} 26. Bf1 {[%clk 0:01:58.7]} 26... h4
{[%clk 0:02:25.7]} 27. Bg2 {[%clk 0:01:58.4]} 27... Bxg2 {[%clk 0:02:13.9]} 28.
Kxg2 {[%clk 0:02:00.3]} 28... Rf3 {[%clk 0:02:15.1]} 29. Re3 {[%clk 0:01:56.1]}
29... Rxe3 {[%clk 0:02:07]} 30. fxe3 {[%clk 0:01:56]} 30... Bh6 {[%clk
0:02:08.3]} 31. Qe2 {[%clk 0:01:50.6]} 31... Qf7 {[%clk 0:01:58.4]} 32. Rd2
{[%clk 0:01:34.6]} 32... Bxe3 {[%clk 0:01:58.2]} 33. Rd1 {[%clk 0:01:31.4]}
33... Bd4 {[%clk 0:01:57.8]} 34. Qg4 {[%clk 0:01:27.9]} 34... hxg3 {[%clk
0:01:39.5]} 35. hxg3 {[%clk 0:01:27.5]} 35... Qf5 {[%clk 0:01:33.2]} 36. Qxf5
{[%clk 0:01:13.8]} 36... gxf5 {[%clk 0:01:34.1]} 37. Ng5 {[%clk 0:01:15.4]}
37... dxc5 {[%clk 0:01:20.7]} 38. Ne6 {[%clk 0:01:15.9]} 38... Rf7 {[%clk
0:01:12.8]} 39. bxc5 {[%clk 0:01:16.4]} 39... Rd7 {[%clk 0:01:09.7]} 40. c6
{[%clk 0:01:08.1]} 40... bxc6 {[%clk 0:01:05.5]} 41. dxc6 {[%clk 0:01:09.2]}
41... Rd6 {[%clk 0:01:06.9]} 42. Nxd4 {[%clk 0:01:07.7]} 42... exd4 {[%clk
0:01:02.3]} 43. Kf3 {[%clk 0:01:08.4]} 43... Kf7 {[%clk 0:01:00.5]} 44. Kf4
{[%clk 0:01:08.6]} 44... Ke6 {[%clk 0:00:57.9]} 45. Rd3 {[%clk 0:01:08.1]} 45...
Kd5 {[%clk 0:00:57.9]} 46. Kxf5 {[%clk 0:01:08.4]} 46... Kc4 {[%clk 0:00:54.6]}
47. Rd1 {[%clk 0:01:07.2]} 47... Rxc6 {[%clk 0:00:52]} 48. g4 {[%clk 0:01:08.4]}
48... d3 {[%clk 0:00:49.3]} 49. g5 {[%clk 0:01:09.2]} 49... Kd4 {[%clk
0:00:39.8]} 50. g6 {[%clk 0:01:09.4]} 50... Rxg6 {[%clk 0:00:39.3]} 51. Kxg6
{[%clk 0:01:09.6]} 51... c5 {[%clk 0:00:40.2]} 52. Kf5 {[%clk 0:01:08.3]} 52...
c4 {[%clk 0:00:41]} 53. Rh1 {[%clk 0:01:05.2]} 53... d2 {[%clk 0:00:40.9]} 54.
Rh8 {[%clk 0:01:04.3]} 54... c3 {[%clk 0:00:41.5]} 55. Rd8+ {[%clk 0:01:05.4]}
55... Ke3 {[%clk 0:00:42.4]} 56. Rc8 {[%clk 0:01:01.2]} 56... d1=Q {[%clk
0:00:43.5]} 57. Rxc3+ {[%clk 0:01:02.5]} 57... Kd4 {[%clk 0:00:44.9]} 58. Rc7
{[%clk 0:01:01.2]} 58... Qb1+ {[%clk 0:00:42.5]} 59. Ke6 {[%clk 0:01:01.9]}
59... Qb6+ {[%clk 0:00:43.5]} 60. Kd7 {[%clk 0:01:03.1]} 60... Kd5 {[%clk
0:00:44.4]} 61. Kc8 {[%clk 0:01:02.4]} 61... a5 {[%clk 0:00:42.4]} 62. Rd7+
{[%clk 0:01:02.3]} 62... Kc6 {[%clk 0:00:42.5]} 63. Rd6+ {[%clk 0:01:01]} 63...
Kxd6 {[%clk 0:00:43.3]} 64. a4 {[%clk 0:01:00]} 64... Qc7# {[%clk 0:00:43.8]}
0-1

[Event "*** Titled Tuesday Blitz"]
[Site "Chess.com"]
[Date "2018.06.05"]
[Round "1"]
[White "dlp300"]
[Black "Anton_Demchenko"]
[Result "0-1"]
[WhiteElo "2402"]
[BlackElo "2780"]
[TimeControl "180+2"]
[EndTime "13:09:11 PDT"]
[Termination "Anton_Demchenko won by resignation"]

1. d4 {[%clk 0:03:01.4]} 1... Nf6 {[%clk 0:02:59.9]} 2. c4 {[%clk 0:03:02.5]}
2... g6 {[%clk 0:03:01.1]} 3. Nc3 {[%clk 0:03:02.1]} 3... Bg7 {[%clk 0:03:02.2]}
4. e4 {[%clk 0:03:03.2]} 4... O-O {[%clk 0:03:03.6]} 5. Nf3 {[%clk 0:03:03.3]}
5... d6 {[%clk 0:03:04.3]} 6. Be2 {[%clk 0:03:04.5]} 6... Na6 {[%clk 0:03:03.3]}
7. O-O {[%clk 0:03:05.4]} 7... e5 {[%clk 0:03:04.3]} 8. Re1 {[%clk 0:03:05.9]}
8... exd4 {[%clk 0:03:03.3]} 9. Nxd4 {[%clk 0:03:06.9]} 9... c6 {[%clk
0:03:00.3]} 10. Bf1 {[%clk 0:03:03.7]} 10... Re8 {[%clk 0:03:00.7]} 11. Bf4
{[%clk 0:02:56.6]} 11... Ng4 {[%clk 0:02:49.7]} 12. Nb3 {[%clk 0:02:34]} 12...
Ne5 {[%clk 0:02:33.7]} 13. Rc1 {[%clk 0:01:34.1]} 13... Be6 {[%clk 0:02:27]} 14.
Na4 {[%clk 0:01:19.2]} 14... c5 {[%clk 0:02:13.4]} 15. Nd2 {[%clk 0:01:15.8]}
15... Nb4 {[%clk 0:02:12.1]} 16. Qb3 {[%clk 0:01:10]} 16... b5 {[%clk
0:02:05.8]} 17. Nc3 {[%clk 0:01:10.3]} 17... Ned3 {[%clk 0:01:46.7]} 18. Bg3
{[%clk 0:01:04.7]} 18... Nxc1 {[%clk 0:01:33.1]} 19. Rxc1 {[%clk 0:01:05]} 19...
Rb8 {[%clk 0:01:34.7]} 20. a3 {[%clk 0:01:02.7]} 20... bxc4 {[%clk 0:01:35.3]}
21. Bxc4 {[%clk 0:00:59.7]} 21... Nd3 {[%clk 0:01:35.6]} 22. Qc2 {[%clk
0:00:56.1]} 22... Nxc1 {[%clk 0:01:35.8]} 23. Qxc1 {[%clk 0:00:53.9]} 23... Qg5
{[%clk 0:01:10.5]} 24. h4 {[%clk 0:00:50.9]} 24... Qe7 {[%clk 0:01:05]} 25. Bd5
{[%clk 0:00:48.2]} 25... Bxd5 {[%clk 0:00:27.6]} 26. Nxd5 {[%clk 0:00:47.6]}
26... Qb7 {[%clk 0:00:29.2]} 27. Nc4 {[%clk 0:00:47]} 27... Rxe4 {[%clk
0:00:16.2]} 28. Nde3 {[%clk 0:00:45.9]} 28... Re6 {[%clk 0:00:13.9]} 29. Nxd6
{[%clk 0:00:45.6]} 29... Qxb2 {[%clk 0:00:14.4]} 30. Qxc5 {[%clk 0:00:45.8]}
30... Qd4 {[%clk 0:00:09.1]} 31. Qc7 {[%clk 0:00:46.1]} 31... Rf8 {[%clk
0:00:10.6]} 32. h5 {[%clk 0:00:45.2]} 32... Be5 {[%clk 0:00:11.4]} 33. Bxe5
{[%clk 0:00:41.6]} 33... Qxe5 {[%clk 0:00:13.3]} 34. Nec4 {[%clk 0:00:38.4]}
34... Qxh5 {[%clk 0:00:14.4]} 35. Ne3 {[%clk 0:00:25.8]} 35... Qe5 {[%clk
0:00:11.3]} 36. Nec4 {[%clk 0:00:25.6]} 36... Qf4 {[%clk 0:00:11.6]} 37. Qa5
{[%clk 0:00:22]} 37... Rxd6 {[%clk 0:00:08.8]} 38. Nxd6 {[%clk 0:00:19.6]} 38...
Qxd6 {[%clk 0:00:10.7]} 39. Qxa7 {[%clk 0:00:19.4]} 39... Re8 {[%clk 0:00:10.9]}
40. Qa5 {[%clk 0:00:17.5]} 40... Qd1+ {[%clk 0:00:11.3]} 41. Kh2 {[%clk
0:00:18]} 41... Qh5+ {[%clk 0:00:13.2]} 0-1

[Event "*** Titled Tuesday Blitz"]
[Site "Chess.com"]
[Date "2018.06.05"]
[Round "1"]
[White "Mepetmepe"]
[Black "akashcheck"]
[Result "1/2-1/2"]
[WhiteElo "2461"]
[BlackElo "2150"]
[TimeControl "180+2"]
[EndTime "13:09:14 PDT"]
[Termination "Game drawn - insufficient material"]

1. d4 {[%clk 0:02:59.1]} 1... Nf6 {[%clk 0:03:00.9]} 2. c4 {[%clk 0:03:00.1]}
2... g6 {[%clk 0:03:01.7]} 3. Nc3 {[%clk 0:03:01.2]} 3... Bg7 {[%clk 0:03:03.6]}
4. e4 {[%clk 0:03:02.3]} 4... O-O {[%clk 0:03:04.8]} 5. h3 {[%clk 0:03:03.6]}
5... d6 {[%clk 0:03:04.5]} 6. Be3 {[%clk 0:03:05]} 6... e5 {[%clk 0:03:03.8]} 7.
d5 {[%clk 0:03:06]} 7... a5 {[%clk 0:03:01.6]} 8. Nf3 {[%clk 0:03:06.9]} 8...
Na6 {[%clk 0:03:02.3]} 9. g4 {[%clk 0:03:07.5]} 9... c6 {[%clk 0:02:50.8]} 10.
Nd2 {[%clk 0:03:05.1]} 10... Nc5 {[%clk 0:02:47.9]} 11. Be2 {[%clk 0:03:03.4]}
11... cxd5 {[%clk 0:02:47.4]} 12. exd5 {[%clk 0:03:01.4]} 12... b6 {[%clk
0:02:45.3]} 13. h4 {[%clk 0:02:59.1]} 13... Ne8 {[%clk 0:02:35.2]} 14. h5 {[%clk
0:02:58.6]} 14... f5 {[%clk 0:02:36.7]} 15. hxg6 {[%clk 0:02:58.6]} 15... hxg6
{[%clk 0:02:37.1]} 16. gxf5 {[%clk 0:02:59.1]} 16... Bxf5 {[%clk 0:02:39]} 17.
Bxc5 {[%clk 0:02:52.8]} 17... dxc5 {[%clk 0:02:38.2]} 18. Nde4 {[%clk
0:02:52.4]} 18... Nd6 {[%clk 0:02:39.1]} 19. Bd3 {[%clk 0:02:51.3]} 19... Nxe4
{[%clk 0:02:31.5]} 20. Bxe4 {[%clk 0:02:50.8]} 20... Qg5 {[%clk 0:02:29.7]} 21.
Qd2 {[%clk 0:02:44.5]} 21... Qg4 {[%clk 0:02:28.5]} 22. Qe2 {[%clk 0:02:35.4]}
22... Qf4 {[%clk 0:02:24.6]} 23. Rg1 {[%clk 0:02:08]} 23... Bh6 {[%clk
0:01:45.3]} 24. Bxf5 {[%clk 0:02:03.2]} 24... Rxf5 {[%clk 0:01:45.2]} 25. Ne4
{[%clk 0:02:03.8]} 25... Kh7 {[%clk 0:01:44.7]} 26. Kd1 {[%clk 0:01:49.9]} 26...
Raf8 {[%clk 0:01:41.6]} 27. Kc2 {[%clk 0:01:46.7]} 27... Rh5 {[%clk 0:01:26.6]}
28. Rg4 {[%clk 0:01:36.5]} 28... Qf5 {[%clk 0:01:25.7]} 29. Rag1 {[%clk
0:01:31.6]} 29... Rh2 {[%clk 0:01:26.1]} 30. R1g2 {[%clk 0:01:28.5]} 30... Rh1
{[%clk 0:01:27.2]} 31. Rxg6 {[%clk 0:01:00.9]} 31... Rc1+ {[%clk 0:01:22.9]} 32.
Kb3 {[%clk 0:00:58.9]} 32... a4+ {[%clk 0:01:24]} 33. Ka3 {[%clk 0:00:46.5]}
33... Qxg6 {[%clk 0:01:19.8]} 34. Rxg6 {[%clk 0:00:46.8]} 34... Kxg6 {[%clk
0:01:21.7]} 35. Qg4+ {[%clk 0:00:46.7]} 35... Kh7 {[%clk 0:01:22.5]} 36. Kxa4
{[%clk 0:00:38.4]} 36... Rxc4+ {[%clk 0:01:16.7]} 37. Kb5 {[%clk 0:00:39.6]}
37... Rb4+ {[%clk 0:01:18.6]} 38. Kc6 {[%clk 0:00:40.8]} 38... Rxb2 {[%clk
0:01:18.7]} 39. d6 {[%clk 0:00:36.6]} 39... Rxa2 {[%clk 0:01:07.8]} 40. d7
{[%clk 0:00:35.9]} 40... Raa8 {[%clk 0:01:06]} 41. Nd6 {[%clk 0:00:34.9]} 41...
c4 {[%clk 0:00:59.7]} 42. Qe4+ {[%clk 0:00:35.1]} 42... Kh8 {[%clk 0:00:58.8]}
43. Qxe5+ {[%clk 0:00:32.9]} 43... Bg7 {[%clk 0:00:59.9]} 44. Qh5+ {[%clk
0:00:33.9]} 44... Kg8 {[%clk 0:01:01]} 45. Qd5+ {[%clk 0:00:32.5]} 45... Kh7
{[%clk 0:01:01.9]} 46. Qxc4 {[%clk 0:00:32.8]} 46... Rad8 {[%clk 0:00:58.7]} 47.
Nf7 {[%clk 0:00:26.3]} 47... Rc8+ {[%clk 0:00:55.5]} 48. dxc8=Q {[%clk
0:00:18.4]} 48... Rxc8+ {[%clk 0:00:57.4]} 49. Kb5 {[%clk 0:00:19.2]} 49... Rxc4
{[%clk 0:00:58.2]} 50. Kxc4 {[%clk 0:00:19.7]} 50... Kg6 {[%clk 0:00:59.7]} 51.
Kb5 {[%clk 0:00:16.5]} 51... Bd4 {[%clk 0:00:57.1]} 52. Ne5+ {[%clk 0:00:15.9]}
52... Kf5 {[%clk 0:00:57.8]} 53. Nd7 {[%clk 0:00:16.8]} 53... Bxf2 {[%clk
0:00:58.6]} 54. Nxb6 {[%clk 0:00:18.7]} 54... Bxb6 {[%clk 0:00:59.5]} 1/2-1/2

[Event "*** Titled Tuesday Blitz"]
[Site "Chess.com"]
[Date "2018.06.05"]
[Round "1"]
[White "Parhamov"]
[Black "rubhani"]
[Result "1-0"]
[WhiteElo "2827"]
[BlackElo "2418"]
[TimeControl "180+2"]
[EndTime "13:09:18 PDT"]
[Termination "Parhamov won by checkmate"]

1. d4 {[%clk 0:02:59]} 1... Nf6 {[%clk 0:03:00.5]} 2. c4 {[%clk 0:02:59.3]} 2...
e6 {[%clk 0:03:01.8]} 3. Nc3 {[%clk 0:02:57]} 3... Bb4 {[%clk 0:03:02]} 4. e3
{[%clk 0:02:58.2]} 4... O-O {[%clk 0:03:02.5]} 5. Bd3 {[%clk 0:02:58.1]} 5... d5
{[%clk 0:03:03.1]} 6. Ne2 {[%clk 0:02:58.9]} 6... dxc4 {[%clk 0:02:45]} 7. Bxc4
{[%clk 0:02:59.7]} 7... c5 {[%clk 0:02:46.1]} 8. a3 {[%clk 0:03:00.5]} 8...
Bxc3+ {[%clk 0:02:25.3]} 9. bxc3 {[%clk 0:03:01]} 9... b6 {[%clk 0:02:15.1]} 10.
O-O {[%clk 0:03:01.1]} 10... Ba6 {[%clk 0:02:13.1]} 11. Bxa6 {[%clk 0:03:00.2]}
11... Nxa6 {[%clk 0:02:15]} 12. Qd3 {[%clk 0:02:56.7]} 12... Nb8 {[%clk
0:02:09.5]} 13. e4 {[%clk 0:02:57.1]} 13... Nc6 {[%clk 0:02:09.5]} 14. Rd1
{[%clk 0:02:54.2]} 14... Qc7 {[%clk 0:01:54.8]} 15. Bf4 {[%clk 0:02:54.8]} 15...
Qe7 {[%clk 0:01:53.1]} 16. dxc5 {[%clk 0:02:47.1]} 16... Rfd8 {[%clk 0:01:34.9]}
17. Bd6 {[%clk 0:02:40.7]} 17... Qb7 {[%clk 0:01:30.5]} 18. Rab1 {[%clk
0:02:31.9]} 18... Na5 {[%clk 0:01:16.3]} 19. e5 {[%clk 0:02:30.1]} 19... Ne4
{[%clk 0:01:17.2]} 20. cxb6 {[%clk 0:02:30.4]} 20... axb6 {[%clk 0:01:13.3]} 21.
f3 {[%clk 0:02:21.3]} 21... Nxd6 {[%clk 0:01:01.6]} 22. exd6 {[%clk 0:02:22]}
22... Qc6 {[%clk 0:01:03]} 23. Ng3 {[%clk 0:02:18.9]} 23... Nc4 {[%clk 0:01:00]}
24. Ne4 {[%clk 0:02:19.2]} 24... f5 {[%clk 0:00:58]} 25. Ng5 {[%clk 0:02:20.2]}
25... Rxd6 {[%clk 0:00:59]} 26. Qe2 {[%clk 0:02:21.3]} 26... Rad8 {[%clk
0:00:56.5]} 27. Rd4 {[%clk 0:02:14.5]} 27... Nxa3 {[%clk 0:00:46.3]} 28. Nxe6
{[%clk 0:01:50.1]} 28... Re8 {[%clk 0:00:32.5]} 29. Rxd6 {[%clk 0:01:23.9]}
29... Qxd6 {[%clk 0:00:33.5]} 30. Re1 {[%clk 0:01:25.1]} 30... Qd5 {[%clk
0:00:31.1]} 31. h4 {[%clk 0:00:49.9]} 31... Nc4 {[%clk 0:00:31.6]} 32. Kh1
{[%clk 0:00:51.1]} 32... h6 {[%clk 0:00:22]} 33. h5 {[%clk 0:00:42]} 33... f4
{[%clk 0:00:18.1]} 34. Qe4 {[%clk 0:00:37.3]} 34... Qxh5+ {[%clk 0:00:19]} 35.
Kg1 {[%clk 0:00:38.2]} 35... Ne3 {[%clk 0:00:20.1]} 36. Nxf4 {[%clk 0:00:35.2]}
36... Rxe4 {[%clk 0:00:19.3]} 37. Nxh5 {[%clk 0:00:36.1]} 37... Re5 {[%clk
0:00:20.6]} 38. Nf4 {[%clk 0:00:36.4]} 38... Nc4 {[%clk 0:00:20.9]} 39. Rd1
{[%clk 0:00:34.6]} 39... Re3 {[%clk 0:00:21.4]} 40. Rd8+ {[%clk 0:00:33]} 40...
Kf7 {[%clk 0:00:22.2]} 41. Rd7+ {[%clk 0:00:34.1]} 41... Kf8 {[%clk 0:00:22.1]}
42. Nd5 {[%clk 0:00:30]} 42... Rd3 {[%clk 0:00:23.4]} 43. Nxb6 {[%clk
0:00:31.3]} 43... Rxc3 {[%clk 0:00:24.6]} 44. Rc7 {[%clk 0:00:24.9]} 44... Rc1+
{[%clk 0:00:15.2]} 45. Kh2 {[%clk 0:00:25.8]} 45... Nxb6 {[%clk 0:00:15.5]} 46.
Rxc1 {[%clk 0:00:27]} 46... Nd5 {[%clk 0:00:17.4]} 47. Rc5 {[%clk 0:00:26.7]}
47... Nf6 {[%clk 0:00:19.3]} 48. Kg3 {[%clk 0:00:27]} 48... Kf7 {[%clk
0:00:21.2]} 49. Kf4 {[%clk 0:00:28.1]} 49... Kg6 {[%clk 0:00:22.9]} 50. Rc6
{[%clk 0:00:28.9]} 50... Kf7 {[%clk 0:00:23.3]} 51. Kf5 {[%clk 0:00:29.5]} 51...
Ng8 {[%clk 0:00:23.8]} 52. Rc7+ {[%clk 0:00:29.9]} 52... Ne7+ {[%clk 0:00:25]}
53. Ke5 {[%clk 0:00:31.1]} 53... Kf8 {[%clk 0:00:26.1]} 54. Ke6 {[%clk
0:00:32.1]} 54... Ng6 {[%clk 0:00:26.7]} 55. Rc8# {[%clk 0:00:33.3]} 1-0

[Event "*** Titled Tuesday Blitz"]
[Site "Chess.com"]
[Date "2018.06.05"]
[Round "1"]
[White "jlandaw"]
[Black "SantoBlue"]
[Result "0-1"]
[WhiteElo "2406"]
[BlackElo "2790"]
[TimeControl "180+2"]
[EndTime "13:09:18 PDT"]
[Termination "SantoBlue won by resignation"]

1. e4 {[%clk 0:03:00.3]} 1... e5 {[%clk 0:02:58.2]} 2. Nf3 {[%clk 0:03:01.1]}
2... Nc6 {[%clk 0:02:57.3]} 3. Bb5 {[%clk 0:03:01.7]} 3... a6 {[%clk 0:02:50.8]}
4. Ba4 {[%clk 0:03:00.7]} 4... Nf6 {[%clk 0:02:49.7]} 5. O-O {[%clk 0:03:01.3]}
5... Be7 {[%clk 0:02:49.2]} 6. Re1 {[%clk 0:03:01.1]} 6... b5 {[%clk 0:02:46.4]}
7. Bb3 {[%clk 0:03:01]} 7... O-O {[%clk 0:02:46.9]} 8. h3 {[%clk 0:02:59.7]}
8... Bb7 {[%clk 0:02:43.2]} 9. a4 {[%clk 0:02:21]} 9... b4 {[%clk 0:02:42.7]}
10. d4 {[%clk 0:02:19.3]} 10... d6 {[%clk 0:02:42.2]} 11. c3 {[%clk 0:02:15.2]}
11... Rb8 {[%clk 0:02:25]} 12. d5 {[%clk 0:01:47.7]} 12... Na5 {[%clk
0:02:19.1]} 13. cxb4 {[%clk 0:01:48.9]} 13... Nxb3 {[%clk 0:02:19.2]} 14. Qxb3
{[%clk 0:01:50.8]} 14... c6 {[%clk 0:02:18.4]} 15. Nc3 {[%clk 0:01:38.4]} 15...
cxd5 {[%clk 0:02:12.4]} 16. exd5 {[%clk 0:01:36.5]} 16... Re8 {[%clk 0:02:09.1]}
17. Be3 {[%clk 0:01:26.7]} 17... Ba8 {[%clk 0:02:03.4]} 18. a5 {[%clk
0:01:13.7]} 18... Qd7 {[%clk 0:01:58]} 19. Red1 {[%clk 0:01:01.8]} 19... h6
{[%clk 0:01:51]} 20. Na4 {[%clk 0:01:00.8]} 20... Qb5 {[%clk 0:01:41.4]} 21. Nb6
{[%clk 0:00:57.2]} 21... Bd8 {[%clk 0:01:42.6]} 22. Nxa8 {[%clk 0:00:40.3]}
22... Rxa8 {[%clk 0:01:41.6]} 23. Ne1 {[%clk 0:00:41.9]} 23... Rb8 {[%clk
0:01:39.9]} 24. Nc2 {[%clk 0:00:42.9]} 24... Bxa5 {[%clk 0:01:35.5]} 25. Ra4
{[%clk 0:00:33.6]} 25... Bd8 {[%clk 0:01:26]} 26. Na3 {[%clk 0:00:34.6]} 26...
Qb7 {[%clk 0:01:26.7]} 27. Nc4 {[%clk 0:00:36]} 27... Bc7 {[%clk 0:01:24.2]} 28.
Na5 {[%clk 0:00:25.1]} 28... Bxa5 {[%clk 0:01:21.6]} 29. Rxa5 {[%clk 0:00:27]}
29... Red8 {[%clk 0:01:15.3]} 30. Rc1 {[%clk 0:00:25.4]} 30... Qxb4 {[%clk
0:01:13.7]} 31. Qxb4 {[%clk 0:00:27.3]} 31... Rxb4 {[%clk 0:01:15]} 32. Rxa6
{[%clk 0:00:28.8]} 32... Nxd5 {[%clk 0:01:15.6]} 33. Rcc6 {[%clk 0:00:20]} 33...
Rxb2 {[%clk 0:00:57.2]} 34. Rxd6 {[%clk 0:00:20.8]} 34... Rxd6 {[%clk 0:00:59]}
35. Rxd6 {[%clk 0:00:22]} 35... Rb1+ {[%clk 0:01:00.9]} 36. Kh2 {[%clk
0:00:23.2]} 36... Nxe3 {[%clk 0:01:02.8]} 37. fxe3 {[%clk 0:00:25]} 37... Re1
{[%clk 0:01:04.5]} 38. Rd3 {[%clk 0:00:25.8]} 38... f5 {[%clk 0:01:03.5]} 39.
Kg3 {[%clk 0:00:27.2]} 39... Kf7 {[%clk 0:01:04.2]} 40. Kf2 {[%clk 0:00:28.4]}
40... Rc1 {[%clk 0:01:05.7]} 41. Rd2 {[%clk 0:00:29.9]} 41... Rc6 {[%clk
0:01:06.4]} 42. Ra2 {[%clk 0:00:31.2]} 42... Kf6 {[%clk 0:01:07.7]} 43. Ke2
{[%clk 0:00:32.7]} 43... Rc4 {[%clk 0:01:04.1]} 44. Kf2 {[%clk 0:00:34]} 44...
Kg5 {[%clk 0:01:05]} 45. Rb2 {[%clk 0:00:33.4]} 45... h5 {[%clk 0:01:05.8]} 46.
Ra2 {[%clk 0:00:34.4]} 46... h4 {[%clk 0:01:07.1]} 47. Rb2 {[%clk 0:00:35.3]}
47... g6 {[%clk 0:01:01.5]} 48. Ra2 {[%clk 0:00:36.4]} 48... Rc6 {[%clk
0:01:00.1]} 49. Rb2 {[%clk 0:00:35.7]} 49... Kf6 {[%clk 0:01:01.2]} 50. Ra2
{[%clk 0:00:35.8]} 50... e4 {[%clk 0:01:02.4]} 51. Rb2 {[%clk 0:00:36.5]} 51...
Ke5 {[%clk 0:01:03.5]} 52. Rb5+ {[%clk 0:00:37.4]} 52... Kd6 {[%clk 0:01:04.9]}
53. Rb2 {[%clk 0:00:39]} 53... Kd5 {[%clk 0:01:03.9]} 54. Rb5+ {[%clk
0:00:39.5]} 54... Kc4 {[%clk 0:01:03.3]} 55. Rb2 {[%clk 0:00:40.2]} 55... Kd3
{[%clk 0:01:03.6]} 56. Rb3+ {[%clk 0:00:35]} 56... Rc3 {[%clk 0:01:03.8]} 57.
Rb6 {[%clk 0:00:36.6]} 57... Rc2+ {[%clk 0:01:05]} 58. Kg1 {[%clk 0:00:38]}
58... Kxe3 {[%clk 0:01:06.2]} 59. Rxg6 {[%clk 0:00:39]} 59... Rc1+ {[%clk
0:01:03.5]} 60. Kh2 {[%clk 0:00:39.9]} 60... Kf2 {[%clk 0:01:04.7]} 61. Rf6
{[%clk 0:00:32.3]} 61... Rc5 {[%clk 0:01:04.3]} 62. Rh6 {[%clk 0:00:33.5]} 62...
e3 {[%clk 0:01:01.1]} 0-1